[Event "French-ch Youth U18 2022"]
[Site "Agen"]
[Date "2022.04.22"]
[Round "7.2"]
[White "Emmenecker, Pierre-Antoine"]
[Black "Decuigniere, Tom"]
[Result "0-1"]
[ECO "B27"]
[WhiteElo "2119"]
[BlackElo "2292"]
[Annotator "TA"]
[PlyCount "112"]
[EventDate "2022.04.17"]
[EventType "swiss"]
[EventCountry "FRA"]
[SourceTitle "playchess.com"]
[Source "ChessBase"]
[SourceQuality "1"]
[TimeControl "5400+30"]

{[%evp 24,112,54,48,46,24,23,17,21,23,23,14,22,17,29,12,34,11,44,20,37,18,22,6,23,28,27,24,45,27,28,31,41,12,23,5,5,7,7,11,25,0,0,0,0,0,0,0,8,8,45,9,17,0,24,0,0,0,0,-14,-17,-35,-14,-25,-25,-23,-24,-197,-218,-382,-375,-382,-382,-375,-375,-4132,-4132,-1515,-8,-8,-8,-129,-129,-568,-8,-802,-8,-29972,-29971,-12847,-12839]} 1. e4 {[%emt 0:00:01]} c5 {[%emt 0:00:05]} 2. Nf3 {[%emt 0:00:05]} g6 {[%emt 0:00:04]} 3. c4 {[%emt 0:02:18]} Nc6 {[%emt 0:00:07]} 4. d4 {[%emt 0:01:13]} cxd4 {[%emt 0:00:05]} 5. Nxd4 {[%emt 0:00:04]} Nf6 {[%emt 0:00:06]} 6. Nc3 {[%emt 0:00:35]} Bg7 {[%emt 0:00:04]} 7. Be3 {[%emt 0:00:45]} O-O {[%emt 0:00:06]} 8. Be2 {[%emt 0:01:45]} d6 {[%emt 0:00:05]} 9. O-O {[%emt 0:01:50]} Bd7 {[%emt 0:00:05]} 10. Qd2 {[%emt 0:03:14]} Nxd4 {[%emt 0:00:05]} 11. Bxd4 {[%emt 0:00:52]} Bc6 {[%emt 0:00:05]} 12. f3 {[%emt 0:02:08]} a5 {[%emt 0:00:05]} 13. Rfd1 {[%emt 0:06:33]} Nd7 {[%emt 0:03:22] B38: Sicilian: Maroczy Bind with 5...Bg7 and 7...0-0.} 14. b3 {[%emt 0:14:28] 14.Bf2 is becoming the main line.} Bxd4+ {[%emt 0:09:11]} 15. Qxd4 {[%emt 0:00:19]} Qb6 {[%emt 0:01:57] The position is equal.} (15... Re8 {is more complex.} 16. Rac1 Nc5 17. g3 Qb6) 16. Qxb6 {[%emt 0:03:45]} Nxb6 {[%emt 0:00:05]} 17. Kf2 {[%emt 0:14:09]} Rac8 {[%emt 0:15:17]} 18. Rac1 {[%emt 0:03:51][%cal Ba1c1,Bc1c2,Bc2d2][%mdl 32]} Rfd8 {[%emt 0:07:13] [#]} 19. Rc2 $146 {[%emt 0:07:59]} ({Predecessor:} 19. Rd2 Nd7 20. Ke3 Nc5 21. Rcd1 Re8 22. g3 Ra8 23. Rb1 b6 24. Bd1 {½-½ (70) Jorgensen,P (2310)-Josephsen,N Denmark 1989}) 19... Kf8 {[%emt 0:07:39]} 20. Rdc1 {[%emt 0:03:05]} e6 {[%emt 0:05:04]} 21. Bf1 {[%emt 0:07:45]} Be8 {[%emt 0:02:56]} 22. Ne2 {[%emt 0:03:02]} Nd7 {[%emt 0:00:36]} 23. Rd2 {[%emt 0:05:10]} Nc5 {[%emt 0:01:28]} 24. Rcd1 {[%emt 0:02:18]} Ke7 {[%emt 0:00:19]} 25. Nc3 {[%emt 0:01:10]} f5 {[%emt 0:08:44]} 26. exf5 {[%emt 0:01:35]} gxf5 {[%emt 0:00:05]} 27. Re1 {[%emt 0:02:29]} Bc6 {[%emt 0:00:30]} 28. Ne2 {[%emt 0:02:59]} e5 {[%emt 0:02:04]} 29. Ng3 {[%emt 0:02:57]} Rf8 {[%emt 0:02:25]} 30. Bd3 {[%emt 0:00:32]} Nxd3+ {[%emt 0:06:21]} 31. Rxd3 {[%emt 0:00:02][%cal Oc4c5]} Rcd8 {[%emt 0:04:56]} 32. c5 {[%emt 0:01:45]} e4 {[%emt 0:00:04]} 33. Rxd6 {[%emt 0:01:13]} Rxd6 {[%emt 0:00:13]} 34. cxd6+ {[%emt 0:00:02]} Kxd6 {[%emt 0:00:07]} 35. fxe4 {[%emt 0:01:15]} fxe4+ $11 {[%emt 0:00:04][%mdl 4096] Endgame KRB-KRN} 36. Ke3 {[%emt 0:00:30]} Kc5 {[%emt 0:04:07]} 37. a3 {[%emt 0:02:20]} (37. Nxe4+ $2 Bxe4 38. Rc1+ Kd5 $19) 37... Bd5 {[%emt 0:01:59]} 38. Rc1+ {[%emt 0:00:47]} ({But not} 38. Nxe4+ $2 Bxe4 39. Rc1+ Kd5 $19) 38... Kb5 {[%emt 0:02:12]} 39. Rc3 {[%emt 0:00:17]} Rg8 {[%emt 0:01:25]} 40. Kd4 {[%emt 0:02:37]} Bc6 {[%emt 0:01:13]} 41. h4 {[%emt 0:00:39]} Rg4 {[%emt 0:00:30]} 42. Re3 {[%emt 0:00:31]} a4 {[%emt 0:00:59]} (42... Rxh4 $5 {[%cal Rh4g4]} 43. Nf5 Rg4 $15) 43. bxa4+ {[%emt 0:00:20]} Kxa4 {[%emt 0:00:05]} 44. h5 {[%emt 0:00:24]} Rg5 {[%emt 0:01:37]} 45. Rc3 $2 {[%emt 0:00:43]} (45. Nxe4 $11 Rd5+ 46. Kc3) 45... Rd5+ $1 $19 {[%emt 0:01:10]} 46. Ke3 $2 {[%emt 0:00:36]} (46. Kxe4 Rc5+ 47. Kd4 Rxc3 48. Kxc3) 46... Rd3+ $1 {[%emt 0:00:23]} 47. Rxd3 {[%emt 0:00:01]} exd3 {[%emt 0:00:07]} 48. Kxd3 {[%emt 0:00:49]} Kxa3 {[%emt 0:00:18] Hoping for ...b5. KB-KN} 49. Kd4 $2 {[%emt 0:00:38]} (49. Ne4 Bxe4+ 50. Kxe4 b5 $19) (49. Nf5 Bxg2 50. Kc4) 49... b5 $1 {[%emt 0:03:24]} 50. Kc5 {[%emt 0:00:18] [#]} Be8 $2 {[%emt 0:00:03]} ({Black should try} 50... Bd7 $1 $19 {And now ...b4 would win.} 51. Ne4 b4) 51. Nf5 $11 {[%emt 0:00:44]} b4 {[%emt 0:00:27][%cal Bb5b4,Bb4b3][%mdl 32]} 52. Ne3 {[%emt 0:00:23]} (52. Nd4 $1 $11 {was the only way to keep the balance.}) 52... b3 $17 {[%emt 0:01:11]} ({Much worse is} 52... Bxh5 $6 53. Nc2+ Kb2 54. Nxb4 $11) 53. g4 {[%emt 0:00:13][%mdl 8192] [#]} (53. Nc4+ $17 Ka2 54. g4) 53... h6 $2 {[%emt 0:04:20]} (53... Kb2 $1 $19 54. Nc4+ Kc3) 54. Kd4 $2 {[%emt 0:00:54][%mdl 8192]} (54. Nc4+ $11 Ka2 55. g5 hxg5 56. h6) 54... Bd7 $2 {[%emt 0:03:44]} (54... Bb5 $19 {( -> ...b2)} 55. Nd5 b2) 55. Kc3 {[%emt 0:00:31][%mdl 8192] [#]} (55. g5 $11) 55... Bxg4 $1 {[%emt 0:01:01][%mdl 512]} 56. Nc4+ {[%emt 0:00:31]} Ka2 {[%emt 0:00:06] Weighted Error Value: White=0.91/Black=0.57} 0-1

[Event "French-ch Youth U18 2022"]
[Site "Agen"]
[Date "2022.04.22"]
[Round "7.3"]
[White "Mathieu, Phileas"]
[Black "Mas, Victor"]
[Result "1/2-1/2"]
[ECO "C44"]
[WhiteElo "2323"]
[BlackElo "2190"]
[Annotator "TA"]
[PlyCount "185"]
[EventDate "2022.04.17"]
[EventType "swiss"]
[EventCountry "FRA"]
[SourceTitle "playchess.com"]
[Source "ChessBase"]
[SourceQuality "1"]
[TimeControl "5400+30"]

{[%evp 21,185,-2,15,12,9,-16,28,12,33,37,48,11,17,20,19,16,0,-20,52,-85,-22,-76,-100,-176,-154,-160,-154,-182,-177,-258,-267,-323,-320,-333,-357,-337,-358,-341,-276,-263,95,83,93,-7,-7,-10,-9,-109,-63,-177,-168,-164,-145,-151,-130,-129,-97,-158,0,0,0,0,0,0,0,-8,0,-8,-8,-20,-15,-29,-37,-24,-8,-8,-8,-8,-8,-8,-20,-203,-8,-8,-8,-8,0,0,0,0,0,0,0,0,0,0,0,0,0,-7,0,0,0,-2075,-1744,-1878,-1654,-29949,-206,-29961,-8,-8,-7,-8,-8,-8,-8,-8,-7,-7,-7,-8,-8,-8,-8,-8,-8,-8,-8,-8,-8,-8,-8,-8,-8,-8,-8,-8,0,-8,-8,-8,-8,-4153,-4153,-4133,-8,-8,-8,-8,-8,-8,-8,-8,-8,-8,-8,-8,-8,-8,-8,-8,-8,-8,0,-8]} 1. e4 {[%emt 0:00:23]} e5 {[%emt 0:00:05]} 2. Nf3 {[%emt 0:00:16]} Nc6 {[%emt 0:00:05]} 3. c3 {[%emt 0:01:50]} d5 {[%emt 0:00:26]} 4. Qa4 {[%emt 0:02:17]} f6 {[%emt 0:00:12]} 5. d3 {[%emt 0:03:03]} Be6 {[%emt 0:09:45]} 6. Be2 {[%emt 0:01:22]} Qd7 {[%emt 0:02:35]} 7. Nbd2 {[%emt 0:08:16]} Bd6 {[%emt 0:17:00]} 8. b4 {[%emt 0:06:07]} Nge7 {[%emt 0:01:47]} 9. O-O {[%emt 0:08:05]} O-O {[%emt 0:03:38]} 10. b5 {[%emt 0:01:00]} Nd8 {[%emt 0:02:39]} 11. d4 {[%emt 0:02:54]} Nf7 {[%emt 0:01:58]} 12. c4 {[%emt 0:09:54]} c6 {[%emt 0:13:32]} 13. bxc6 {[%emt 0:17:01]} bxc6 {[%emt 0:00:03]} 14. Ba3 {[%emt 0:06:00]} Rfc8 {[%emt 0:19:54]} 15. Rfd1 {[%emt 0:06:50]} exd4 {[%emt 0:03:03]} 16. Nxd4 {[%emt 0:01:20]} c5 {[%emt 0:00:20]} 17. Qxd7 {[%emt 0:05:53]} Bxd7 {[%emt 0:00:01]} 18. N4b3 {[%emt 0:01:11]} d4 {[%emt 0:00:13]} 19. g3 {[%emt 0:00:40]} (19. e5 $5 fxe5 20. Ne4 $11) 19... g5 {[%emt 0:02:00]} (19... Rc7 $11) 20. Na5 {[%emt 0:02:02]} (20. e5 $14 {stays ahead.} Bxe5 21. Rac1) 20... Rab8 {[%emt 0:01:57]} (20... Rc7 $17) 21. Rab1 {[%emt 0:00:58]} (21. Nab3 $1 $11 {keeps the balance.}) 21... Rb6 $17 {[%emt 0:00:43]} 22. Ndb3 {[%emt 0:05:25]} (22. Nb7 $17 {might work better.}) 22... Ra6 {[%emt 0:01:00]} 23. Bc1 {[%emt 0:00:54]} Ng6 {[%emt 0:07:41]} 24. Bd2 {[%emt 0:01:15]} g4 {[%emt 0:01:11]} 25. Nb7 {[%emt 0:03:22]} (25. Nxd4 {was called for.} cxd4 26. c5 Rxa5 27. Bxa5 Bxc5 28. Ba6) 25... Be7 $19 {[%emt 0:01:19]} (25... Rxa2 $2 26. Ra1 Rb2 27. Rxa7 $19) 26. Nc1 {[%emt 0:01:53]} Nge5 {[%emt 0:00:56]} 27. h3 {[%emt 0:01:15]} h5 {[%emt 0:01:04]} (27... gxh3 $2 28. f4 Ng4 29. Nd3 $19) 28. hxg4 {[%emt 0:00:14]} hxg4 {[%emt 0:00:03]} (28... Bxg4 $2 29. Bf4 $19) 29. Na5 {[%emt 0:00:41]} Nd6 {[%emt 0:00:43]} 30. Nd3 {[%emt 0:00:36]} Nexc4 $2 {[%emt 0:02:46]} (30... Nxe4 $2 31. Rb7 Rd8 32. Nb3 Rxa2 33. Nxe5 fxe5 34. Bd3 $19) (30... Bd8 $19 31. Nb3 (31. Nxe5 $2 fxe5 32. Nb3 Nxe4 $19) 31... Nxe4 32. Nxe5 fxe5) 31. Nxc4 $16 {[%emt 0:00:17]} Nxc4 {[%emt 0:00:01]} 32. Nf4 {[%emt 0:01:04]} (32. Rb7 $1 $16 {[%cal Rb7d7]} Nxd2 33. Rxd7) 32... Nxd2 $11 {[%emt 0:03:07]} ({Don't do} 32... Ra4 33. Rb7 Ne5 34. Nd3 $16) 33. Bxa6 {[%emt 0:01:55]} Nxb1 {[%emt 0:00:06]} 34. Bxc8 {[%emt 0:00:44]} (34. Rxb1 $11 {remains equal.} Rd8 35. Bc4+ (35. Rb7 Bd6 $11) 35... Kf8 36. Rb7) 34... Nc3 {[%emt 0:00:07]} ({Better is} 34... Bxc8 $17 35. Rxb1 Ba6) 35. Rxd4 {[%emt 0:00:14]} ({White should play} 35. Bxd7 $15 Nxd1 36. Kf1) 35... Bxc8 $19 {[%emt 0:00:46]} (35... cxd4 36. Bxd7 Bd6 37. Nd5 $11) 36. Rc4 {[%emt 0:00:01]} Nb5 {[%emt 0:02:16]} (36... Nxa2 37. Nd5 Kf7 38. Rc2 $11) 37. Nd5 {[%emt 0:00:28]} Bd6 {[%emt 0:00:01]} 38. Nxf6+ {[%emt 0:00:56]} Kf7 {[%emt 0:00:01]} 39. e5 {[%emt 0:00:48] [#]} (39. Nxg4 $142 Bxg4 40. e5) 39... Bxe5 $2 {[%emt 0:02:21]} (39... Be6 $1 $17 40. Ra4 Bxe5) 40. Rxc5 $11 {[%emt 0:00:02]} Kxf6 {[%emt 0:00:19]} 41. Rxc8 {[%emt 0:00:38]} Nd4 {[%emt 0:00:38]} 42. Kg2 {[%emt 0:00:45]} Nf3 {[%emt 0:00:37]} 43. Rc6+ {[%emt 0:00:39]} Kf5 {[%emt 0:00:09]} 44. Rc5 {[%emt 0:00:19]} Ke4 {[%emt 0:00:36]} 45. Rc1 {[%emt 0:00:32]} Bd4 {[%emt 0:00:24]} 46. Rb1 {[%emt 0:00:21]} Kd3 {[%emt 0:00:55]} 47. Rb8 {[%emt 0:00:22]} Ne5 {[%emt 0:00:40]} 48. Kf1 {[%emt 0:00:22]} a5 {[%emt 0:00:46]} 49. a4 $1 {[%emt 0:00:26]} Bc3 {[%emt 0:00:37]} 50. Rb6 {[%emt 0:00:46]} Bb4 {[%emt 0:00:48]} 51. Rb5 $2 {[%emt 0:00:23]} (51. Re6 $1 $11 {and White has nothing to worry.} Nc4 52. Kg2) 51... Ke4 $2 {[%emt 0:01:10]} ({Black should try} 51... Nf3 $1 $19 {Threatens to win with ...Kc4.} 52. Rb8 Nd2+ 53. Ke1 Nc4+ 54. Kf1 Kc3) 52. Ke2 $11 {[%emt 0:00:12]} Kd4 {[%emt 0:00:06]} 53. Rb8 {[%emt 0:00:29]} Ke4 {[%emt 0:00:40]} 54. Rb7 {[%emt 0:00:32]} Nc6 {[%emt 0:00:47]} 55. Rg7 {[%emt 0:00:37]} Nd4+ {[%emt 0:00:17]} 56. Kf1 {[%emt 0:00:06]} Kf5 {[%emt 0:00:29]} 57. Rf7+ {[%emt 0:00:12]} Kg5 {[%emt 0:00:08]} 58. Rg7+ {[%emt 0:00:13]} Kf5 {[%emt 0:00:10]} 59. Rf7+ {[%emt 0:00:07]} Kg5 {[%emt 0:00:07]} 60. Rd7 {[%emt 0:00:41]} Ne6 {[%emt 0:00:39]} 61. Rd5+ {[%emt 0:00:31]} Kf6 {[%emt 0:00:20]} 62. f3 $2 {[%emt 0:00:19][%mdl 8192]} (62. Ke2 $11) 62... gxf3 $19 {[%emt 0:00:13]} 63. Kf2 {[%emt 0:00:06]} Ng5 $1 {[%emt 0:01:16]} ({And not} 63... Nc5 64. Kxf3 Ke6 65. Rh5 $15) 64. g4 {[%emt 0:01:09] [#]} Kg6 $2 {[%emt 0:00:37]} (64... Bc5+ $1 {[%mdl 512]} 65. Kg3 (65. Ke1 f2+) 65... f2 $1 66. Kg2 Ne4 67. Rf5+ Kg6 68. Rf4 Nd2 69. Rxf2 Bxf2 70. Kxf2 Nc4 71. Ke2 Nb6 72. Kf3 Kg5 73. Kg3 Nxa4 74. Kf3 Nb6 75. Ke4 Kxg4 76. Kd4 a4 77. Kd3 Kf4 78. Kd4 a3 79. Kc3 Ke4 80. Kb3 Nc4 $1 {[%mdl 512]} 81. Ka2 Kd3 82. Kb3 Kd4 83. Ka2 Kc3 84. Ka1 Ne3 85. Kb1 Kb3 86. Kc1 a2 87. Kd2 Nc4+ 88. Ke2 a1=Q 89. Kf2 Qf6+ 90. Kg2 Ne3+ 91. Kg3 Kc3 92. Kh2 Qf3 93. Kg1 Qg2#) 65. Rb5 $2 {[%emt 0:00:18] [#]} (65. Ke3 $19) 65... Ne4+ $2 {[%emt 0:00:37]} (65... Bc5+ $1 {[%mdl 512] mates} 66. Kg3 f2 $1 67. Kg2 Ne4 68. Rb2 Kg5 69. Rc2 Kxg4 70. Rc4 Kf4 71. Rc2 Ke3 72. Rc1 Nd2 $1 73. Ra1 Ke2 74. Kh3 f1=Q+ 75. Rxf1 Kxf1 76. Kh4 Nc4 77. Kg5 Nb6 78. Kf5 Nxa4 79. Ke4 Nb6 80. Kd3 a4 81. Kc3 Ke2 82. Kc2 Nc4 83. Kc1 Nd2 84. Kb2 Kd3 85. Ka1 Kc3 86. Ka2 Kc2 87. Ka1 Nb3+ 88. Ka2 Nc1+ 89. Ka1 Bd4#) 66. Kxf3 $11 {[%emt 0:00:24]} Nc3 {[%emt 0:00:05]} 67. Rf5 {[%emt 0:01:24]} Nxa4 {[%emt 0:00:22]} 68. Ke4 {[%emt 0:00:43]} Nb2 {[%emt 0:01:06]} 69. Rf2 {[%emt 0:01:14]} Bc3 {[%emt 0:00:29]} 70. Rc2 {[%emt 0:00:27]} Bf6 {[%emt 0:00:14]} 71. Rc6 {[%emt 0:00:29]} a4 {[%emt 0:00:21]} 72. Ra6 {[%emt 0:00:25]} Kg5 {[%emt 0:00:43]} 73. Ke3 {[%emt 0:00:15]} Bc3 {[%emt 0:00:36]} 74. Rc6 {[%emt 0:00:43]} Bb4 {[%emt 0:00:26]} 75. Ra6 {[%emt 0:00:40]} a3 {[%emt 0:00:30]} 76. Ke4 {[%emt 0:00:19]} Kxg4 {[%emt 0:00:25]} 77. Rg6+ {[%emt 0:00:01]} Kh5 {[%emt 0:00:19]} 78. Rg1 {[%emt 0:00:44]} Bc5 {[%emt 0:01:24]} 79. Rc1 {[%emt 0:00:41]} Bb4 {[%emt 0:00:42]} 80. Rg1 {[%emt 0:00:33]} Kh4 {[%emt 0:00:20]} 81. Kf3 {[%emt 0:00:18]} Bc3 {[%emt 0:00:25]} 82. Rf1 $2 {[%emt 0:01:06][%mdl 8192]} (82. Rg6 $11) 82... Nc4 $19 {[%emt 0:00:38]} 83. Ke2 {[%emt 0:00:08] [#]} Ne5 $2 {[%emt 0:00:40]} (83... Be5 $1 $19 84. Kd3 Na5 85. Rh1+ Kg4) 84. Rf4+ $1 $11 {[%emt 0:00:25]} Kg5 {[%emt 0:00:15]} (84... Kg3 $5 85. Ra4 Kh2 $11) 85. Ra4 {[%emt 0:00:04]} Bb2 {[%emt 0:00:30]} 86. Kd2 {[%emt 0:00:24]} Nf3+ {[%emt 0:00:42]} 87. Kc2 {[%emt 0:00:28]} Nd4+ {[%emt 0:00:21]} 88. Kb1 {[%emt 0:00:29]} Kf6 {[%emt 0:00:40]} 89. Ka2 {[%emt 0:00:42]} Nb5 {[%emt 0:00:10]} 90. Ra6+ {[%emt 0:00:15]} Ke7 {[%emt 0:00:10]} 91. Ra5 {[%emt 0:00:20]} Nc3+ {[%emt 0:00:17]} 92. Kb3 {[%emt 0:00:06]} Nb1 {[%emt 0:01:04]} 93. Rxa3 {[%emt 0:00:15]} 1/2-1/2

[Event "French-ch Youth U18 2022"]
[Site "Agen"]
[Date "2022.04.22"]
[Round "7.4"]
[White "Maugenest, Ghislain"]
[Black "Lafourcade, Victor"]
[Result "1-0"]
[ECO "E06"]
[WhiteElo "2256"]
[BlackElo "2055"]
[Annotator "TA"]
[PlyCount "97"]
[EventDate "2022.04.17"]
[EventType "swiss"]
[EventCountry "FRA"]
[SourceTitle "playchess.com"]
[Source "ChessBase"]
[SourceQuality "1"]
[TimeControl "5400+30"]

{[%evp 17,97,58,51,10,37,15,8,8,12,14,12,7,78,78,70,73,71,75,79,54,95,93,111,116,116,121,134,128,125,135,156,157,153,143,176,161,255,254,345,162,418,418,418,418,418,418,418,409,395,401,424,400,427,424,468,463,1258,1198,1356,1266,1708,1431,7564,7427,6287,6660,29960,29967,29984,29985,29986,29987,29987,29988,29988,29989,29993,29994,29995,29996,29996,29997]} 1. d4 {[%emt 0:00:05]} Nf6 {[%emt 0:00:04]} 2. c4 {[%emt 0:00:15]} e6 {[%emt 0:00:04]} 3. Nf3 {[%emt 0:00:19]} d5 {[%emt 0:00:04]} 4. g3 {[%emt 0:00:23]} Be7 {[%emt 0:00:07]} 5. Bg2 {[%emt 0:00:30]} O-O {[%emt 0:00:05]} 6. O-O {[%emt 0:00:17]} dxc4 {[%emt 0:02:04]} 7. Ne5 {[%emt 0:00:51]} c5 {[%emt 0:13:56]} 8. dxc5 {[%emt 0:04:26]} Bxc5 {[%emt 0:00:23]} 9. Qxd8 {[%emt 0:11:04]} Rxd8 {[%emt 0:00:03]} 10. Nd2 {[%emt 0:00:34][%cal Bb1d2,Bd2c4,Bc4e5][%mdl 32] E05: Open Catalan: 5 Nf3 Be7.} Nc6 {[%emt 0:12:26]} 11. Nxc6 {[%emt 0:33:41]} (11. Ndxc4 $5 {[%cal Re5c6]} Bd7 12. Bxc6 Bxc6 13. Nxc6 bxc6 14. Bg5 $11) 11... bxc6 {[%emt 0:00:08] [#]} 12. Nxc4 $146 {[%emt 0:00:06] The position is equal.} ({Predecessor:} 12. Bxc6 Rb8 13. Nxc4 Ba6 14. Bf4 Bxc4 15. Bxb8 Rxb8 16. Rfc1 Rc8 17. Rxc4 Rxc6 18. Kg2 a5 19. Rac1 Nd7 20. Rd1 Nf8 21. Rdc1 {½-½ (21) Hassen,M (1972)-Strugach,A (2117) Lansing 2009}) 12... Ba6 {[%emt 0:07:10]} 13. Ne5 {[%emt 0:01:34]} Bxe2 {[%emt 0:07:43]} 14. Re1 {[%emt 0:00:56]} Bh5 {[%emt 0:00:15]} (14... Bb5 $11 {remains equal.}) 15. Nxc6 $16 {[%emt 0:06:16]} Rdc8 {[%emt 0:10:56]} 16. Be3 {[%emt 0:03:01]} Nd5 {[%emt 0:00:45]} 17. Bxc5 {[%emt 0:05:00]} Rxc6 {[%emt 0:00:19]} 18. b4 $36 {[%emt 0:01:52][%cal Oc5a7][%mdl 2048] White is more active.} h6 {[%emt 0:06:05] White stays focused until the end.} 19. Re5 {[%emt 0:09:18][%csl LRd5,LRh5]} Bg6 {[%emt 0:00:14]} 20. Rxd5 {[%emt 0:01:39]} exd5 {[%emt 0:00:02]} 21. Bxd5 {[%emt 0:00:08] This bishop pair is nice.} Rcc8 {[%emt 0:01:10]} 22. Bxa8 {[%emt 0:00:16] White is more active.} Rxa8 {[%emt 0:00:02][%mdl 4096] Endgame KRB-KRB} 23. b5 {[%emt 0:01:10]} Rb8 {[%emt 0:03:48]} 24. a4 {[%emt 0:02:23]} ({Don't do} 24. Bxa7 Rxb5 25. a4 Rb1+ 26. Rxb1 Bxb1 $16) 24... Rb7 {[%emt 0:00:04]} 25. f3 {[%emt 0:03:29]} Kh7 {[%emt 0:01:21]} 26. Kf2 {[%emt 0:00:59] Black must now prevent Ke3.} Bc2 {[%emt 0:06:27]} (26... Rc7 $142) 27. Ke3 $18 {[%emt 0:01:17][%cal Oc5a7] Strongly threatening Bxa7!} Rd7 {[%emt 0:00:06] [#]} 28. Bd4 {[%emt 0:01:31]} (28. Bxa7 $142 $1 {[%mdl 512] b6 is the strong threat.} Rd3+ 29. Ke2) 28... Kg6 $2 {[%emt 0:01:07]} (28... Bb3 29. a5 Bc4) 29. a5 {[%emt 0:01:24]} Rb7 {[%emt 0:01:55]} 30. b6 {[%emt 0:01:14]} axb6 {[%emt 0:00:09]} 31. a6 {[%emt 0:02:10]} Rb8 {[%emt 0:07:25]} 32. a7 {[%emt 0:00:22]} Ra8 {[%emt 0:00:01]} 33. Bxb6 {[%emt 0:00:22]} Bf5 {[%emt 0:00:37]} 34. Bc7 {[%emt 0:00:29]} Kf6 {[%emt 0:00:57]} 35. Bb8 {[%emt 0:00:15]} h5 {[%emt 0:00:31]} 36. h4 {[%emt 0:00:31]} g6 {[%emt 0:00:15]} (36... g5 $142 37. Ra6+ Ke7) 37. Kf4 {[%emt 0:00:17]} Be6 {[%emt 0:00:15]} 38. Ra5 {[%emt 0:00:31]} Kg7 {[%emt 0:00:27]} 39. g4 {[%emt 0:00:59]} hxg4 {[%emt 0:00:09]} 40. fxg4 {[%emt 0:00:02]} Bc4 {[%emt 0:00:40]} 41. g5 {[%emt 0:03:23]} Bd3 {[%emt 0:00:52]} 42. Rd5 {[%emt 0:00:49] White mates.} Bc4 {[%emt 0:00:56]} 43. Rd8 {[%emt 0:00:23]} Kh7 {[%emt 0:00:06]} 44. Ke5 {[%emt 0:00:12]} Be6 {[%emt 0:00:17]} 45. Kf6 {[%emt 0:00:45]} Bc4 {[%emt 0:00:34]} 46. Rf8 {[%emt 0:00:17]} Be6 {[%emt 0:00:08]} 47. Rxf7+ {[%emt 0:00:29]} Bxf7 {[%emt 0:00:03]} 48. Kxf7 {[%emt 0:00:05]} Rxb8 {[%emt 0:00:04]} 49. axb8=B {[%emt 0:00:11] Weighted Error Value: White=0.08 (flawless) /Black=0.44} 1-0